bitfinex-derivatives/quotes_ETHF0:USTF0_20251008
["timestamp","ask_amount","ask_price","bid_price","bid_amount"]
[1759891985644,0.7249,4483.5,4483.4,4.55684077]
[1759891985833,0.7249,4483.5,4483.4,5.07894077]
[1759891986037,0.7249,4483.5,4483.4,5.28894077]
[1759891986237,0.4294,4483.7,4483.6,0.61456]
[1759891986441,0.517,4483.7,4483.6,1.13336]
[1759891987543,0.7249,4483.7,4483.6,1.13336]
[1759891987841,0.7249,4483.7,4483.6,0.7321]
[1759891988046,0.55,4483.5,4483.4,0.00238566]
[1759891988243,0.8606,4483.5,4483.4,0.00238566]
[1759891988450,1.0836,4483.5,4483.4,0.00238566]
[1759891990049,3.99599684,4483.5,4483.4,0.00238566]
[1759891991238,7.20379684,4483.5,4483.4,0.00238566]
[1759891999957,3.34179684,4483.5,4483.4,0.73448566]
[1759892000161,0.20848186,4484.0,4483.9,0.7321]
[1759892000361,0.00208186,4484.0,4483.9,0.7321]
[1759892000557,0.00208186,4484.0,4483.9,1.67748511]
[1759892000962,0.51908186,4484.0,4483.9,1.67748511]
[1759892003060,0.91465,4484.9,4484.8,0.4175]
[1759892003264,1.83074532,4484.9,4484.8,0.7368]
[1759892003563,4.7929264,4484.9,4484.8,0.7368]
[1759892004062,4.79560335,4484.9,4484.8,0.7368]
[1759892005861,3.43935335,4484.9,4484.8,0.7368]
[1759892006066,0.00267695,4484.9,4484.8,1.68218511]
[1759892006268,0.00267695,4484.9,4484.8,9.88998511]
[1759892007067,0.00267695,4484.9,4484.8,9.70278009]
[1759892007367,0.00267695,4484.9,4484.8,6.49498009]
[1759892007666,0.00267695,4484.9,4484.8,9.70278009]
[1759892009359,0.40381695,4484.9,4484.8,9.70278009]
[1759892009564,0.40381695,4484.9,4484.3,0.1797834]
[1759892009565,0.7311,4484.4,4484.3,4.49148009]
[1759892009763,0.7311,4484.4,4484.3,3.96598009]
[1759892010065,0.7311,4484.4,4484.3,0.96438009]
[1759892010259,0.7311,4484.4,4484.3,1.17568009]
[1759892010465,0.7311,4484.4,4484.3,1.49498009]
[1759892011967,0.7311,4484.4,4484.3,0.96438009]
[1759892016172,0.7311,4484.4,4484.3,1.28098009]
[1759892016471,0.7311,4484.4,4484.3,1.50488009]
[1759892019172,0.7311,4484.4,4484.3,1.18828009]
[1759892019372,0.7311,4484.4,4484.3,1.50488009]
[1759892020374,0.93881695,4484.9,4484.8,0.4371]
[1759892020581,1.16181695,4484.9,4484.8,0.7537]
[1759892020773,4.07223646,4484.9,4484.8,0.7537]
[1759892021078,4.29503646,4484.9,4484.8,0.7537]
[1759892022371,3.68369646,4484.9,4484.5,0.2202]
[1759892022577,0.7519,4484.6,4484.5,0.758]
[1759892022784,1.15307,4484.6,4484.5,0.758]
[1759892025079,1.37707,4484.6,4484.5,0.758]
[1759892026474,0.40119,4484.4,4484.3,3.2078]
[1759892026679,0.92939,4484.4,4484.3,0.97838009]
[1759892026878,1.15309,4484.4,4484.3,1.20488009]
[1759892027076,0.92939,4484.4,4484.3,1.20488009]
[1759892027281,0.92939,4484.4,4484.3,1.51618009]
[1759892029083,1.15309,4484.4,4484.3,1.51618009]
[1759892029285,0.5282,4484.0,4483.9,1.20022467]
[1759892029471,1.27607,4483.5,4483.4,0.98076575]
[1759892029676,1.27607,4483.5,4483.4,0.22258566]
[1759892029885,4.20867237,4483.5,4483.4,0.22258566]
[1759892030381,4.20867237,4483.5,4483.4,0.44908566]
[1759892030581,4.20867237,4483.5,4483.4,0.76038566]
[1759892035082,4.20867237,4483.5,4483.4,0.00238566]
[1759892036286,4.20867237,4483.5,4483.4,0.22258566]
[1759892036982,3.68450237,4483.5,4483.4,1.51856575]
[1759892037172,3.15660237,4483.5,4483.4,1.51856575]
[1759892037576,2.93260237,4483.5,4483.4,1.51856575]
[1759892037780,0.40126,4483.6,4483.5,0.8878]
[1759892039672,0.92946,4483.6,4483.5,0.758]
[1759892039875,0.92946,4483.6,4483.4,0.76056575]
[1759892039876,0.8748,4483.5,4483.4,0.00238566]
[1759892040073,1.0988,4483.5,4483.4,0.22258566]
[1759892040278,3.96864447,4483.5,4483.4,0.22258566]
[1759892041380,3.96864447,4483.5,4483.4,0.44908566]
[1759892041976,3.96864447,4483.5,4483.4,0.22258566]
[1759892044683,0.3148,4484.3,4484.1,0.3113]
[1759892044986,0.7519,4484.4,4484.3,0.2202]
[1759892045184,0.7519,4484.4,4484.0,0.2193]
[1759892045185,0.40121,4484.1,4484.0,0.2193]
[1759892045380,1.04641,4484.1,4484.0,0.2193]
[1759892045581,1.04641,4484.1,4484.0,0.556]
[1759892045989,1.35441,4484.1,4484.0,0.7811]
[1759892048284,1.35441,4484.1,4484.0,0.4444]
[1759892049187,1.35441,4484.1,4484.0,0.7811]
[1759892049489,1.35441,4484.1,4484.0,0.4444]
[1759892049786,4.3073009,4484.1,4484.0,0.2193]
[1759892051293,0.8644,4483.5,4483.3,1.93820467]
[1759892051494,0.8644,4483.5,4483.4,1.54166575]
[1759892051686,0.7292,4483.5,4483.4,2.74189042]
[1759892051876,0.5203,4483.5,4483.4,2.74189042]
[1759892052380,0.224,4483.7,4483.5,1.18237]
[1759892052579,0.532,4483.7,4483.6,0.7811]
[1759892053182,0.224,4483.7,4483.6,0.7811]
[1759892053685,0.224,4483.8,4483.7,0.3367]
[1759892053984,0.70923,4483.9,4483.8,1.53928009]
[1759892054886,0.308,4483.9,4483.8,1.53928009]
[1759892055089,0.40115,4484.8,4484.6,0.7811]
[1759892055289,0.224,4484.7,4484.6,0.7811]
[1759892055486,3.17817775,4484.7,4484.6,0.7811]
[1759892056582,3.17817775,4484.7,4484.6,1.53928009]
[1759892058193,3.69847775,4484.7,4484.6,1.53928009]
[1759892058390,3.90737775,4484.7,4484.6,1.53928009]
[1759892058887,3.69747775,4484.7,4484.6,1.53928009]
[1759892062690,2.95417775,4484.7,4484.6,1.53928009]
[1759892062894,0.00267695,4484.9,4484.8,0.7811]
[1759892063191,3.2078,4485.8,4485.7,0.4444]
[1759892063387,3.4318,4485.8,4485.7,1.53928009]
[1759892063590,6.81768363,4485.8,4485.7,1.53928009]
[1759892063794,6.50968363,4485.8,4485.7,1.53928009]
[1759892064288,6.29984823,4485.8,4485.7,1.53928009]
[1759892065499,6.60784823,4485.8,4485.7,1.53928009]
[1759892066298,6.82014823,4485.8,4485.7,1.53928009]
[1759892068993,6.82014823,4485.8,4485.7,0.7811]
[1759892069187,6.29984823,4485.8,4485.7,0.7811]
[1759892069900,6.51214823,4485.8,4485.7,0.7811]
[1759892070097,6.29984823,4485.8,4485.7,0.7811]
[1759892071597,3.09204823,4485.8,4485.7,0.7811]
[1759892071805,3.61234823,4485.8,4485.7,0.7811]
[1759892073003,3.38834823,4485.8,4485.7,0.7811]
[1759892073304,3.61134823,4485.8,4485.7,0.7811]
[1759892075608,0.0024646,4485.8,4485.7,0.7811]
[1759892076804,3.2078,4486.5,4486.0,0.1326]
[1759892077005,3.2078,4486.5,4486.4,2.115087]
[1759892077204,3.727,4487.1,4487.0,0.4342]
[1759892077405,3.4308,4487.1,4487.0,1.840677]
[1759892078109,3.20972651,4487.1,4487.0,1.84261879]
[1759892078305,3.43272651,4487.1,4487.0,1.84261879]
[1759892078707,0.22492651,4487.1,4487.0,1.84261879]
[1759892080810,0.00192651,4487.1,4487.0,1.84261879]
[1759892081814,0.33542651,4487.1,4487.0,1.84261879]
[1759892085230,0.56012651,4487.1,4487.0,1.71601879]
[1759892087113,0.77342651,4487.1,4487.0,0.00194179]
[1759892087322,0.77342651,4487.1,4487.0,0.74764179]
[1759892087821,0.00192651,4487.1,4487.0,0.87344179]
[1759892088323,0.33542651,4487.1,4487.0,0.87344179]
[1759892088714,0.56012651,4487.1,4487.0,0.87344179]
[1759892089919,0.56012651,4487.1,4487.0,0.74764179]
[1759892092022,0.56012651,4487.1,4487.0,3.95544179]
[1759892092222,1.02980146,4487.1,4487.0,3.95544179]
[1759892094724,1.24310146,4487.1,4487.0,3.20974179]
[1759892095323,1.24310146,4487.1,4487.0,3.42514179]
[1759892095524,1.24310146,4487.1,4487.0,3.95544179]
[1759892097025,1.24310146,4487.1,4487.0,3.42514179]
[1759892097221,0.77342651,4487.1,4487.0,3.73514179]
[1759892097427,0.77342651,4487.1,4487.0,3.95544179]
[1759892097618,0.56012651,4487.1,4487.0,3.95544179]
[1759892098722,0.00192651,4487.1,4487.0,4.08124179]
[1759892099025,0.77342651,4487.1,4487.0,3.95544179]
[1759892099425,0.00192651,4487.1,4487.0,4.08124179]
[1759892100223,0.77342651,4487.1,4487.0,3.51974179]
[1759892100422,0.77342651,4487.1,4487.0,3.73514179]
[1759892100623,0.77342651,4487.1,4487.0,3.95544179]
[1759892100818,0.33542651,4487.1,4487.0,3.95544179]
[1759892101030,0.00192651,4487.1,4487.0,4.08124179]
[1759892101528,0.56012651,4487.1,4487.0,3.95544179]
[1759892102027,0.77342651,4487.1,4487.0,3.95544179]
[1759892106130,1.03169354,4487.1,4487.0,3.95544179]
[1759892106831,0.47349354,4487.1,4487.0,4.07844179]
[1759892107130,0.80529354,4487.1,4487.0,4.07844179]
[1759892107327,1.02109354,4487.1,4487.0,4.07844179]
[1759892107728,0.47349354,4487.1,4487.0,4.07844179]
[1759892108931,0.80529354,4487.1,4487.0,4.07844179]
[1759892109628,0.47349354,4487.1,4487.0,4.07844179]
[1759892110942,0.80529354,4487.1,4487.0,4.07844179]
[1759892113136,0.47349354,4487.1,4487.0,4.07844179]
[1759892113330,0.47349354,4487.1,4487.0,6.22334346]
[1759892113635,0.00192651,4487.1,4487.0,5.02311879]
[1759892119841,0.54952651,4487.1,4487.0,3.95544179]
[1759892120341,0.00192651,4487.1,4487.0,4.07844179]
[1759892120937,0.54952651,4487.1,4487.0,3.95544179]
[1759892121340,0.00192651,4487.1,4487.0,4.07844179]
[1759892128945,0.54952651,4487.1,4487.0,4.30144179]
[1759892129135,0.54952651,4487.1,4487.0,6.25956533]
[1759892129334,0.54952651,4487.1,4487.0,4.93608496]
[1759892129539,0.77462651,4487.1,4487.0,4.93608496]
[1759892129741,0.54952651,4487.1,4487.0,4.93608496]
[1759892129940,0.00192651,4487.1,4487.0,5.05908496]
[1759892133447,0.77462651,4487.1,4487.0,4.93608496]
[1759892133650,0.77462651,4487.1,4487.0,4.19038496]
[1759892133841,0.77462651,4487.1,4487.0,5.39104521]
[1759892134147,0.77462651,4487.1,4487.0,6.13304521]
[1759892134444,0.77462651,4487.1,4487.0,4.93238496]
[1759892134641,0.77462651,4487.1,4487.0,3.64124179]
[1759892134842,9.95580228,4487.1,4487.0,0.00194179]
[1759892135144,9.19815911,4487.1,4487.0,0.76294179]
[1759892135448,4.19815911,4487.1,4487.0,1.52058496]
[1759892144554,4.42115911,4487.1,4487.0,1.52058496]
[1759892146756,4.42115911,4487.1,4487.0,0.75958496]
[1759892147258,4.42115911,4487.1,4487.0,1.28438496]
[1759892147560,3.94993555,4487.1,4487.0,1.28438496]
[1759892148054,3.94993555,4487.1,4487.0,1.50518496]
[1759892149050,3.72693555,4487.1,4487.0,1.50518496]
[1759892149254,3.94993555,4487.1,4487.0,1.50518496]
[1759892151058,3.94993555,4487.1,4487.0,0.74754179]
[1759892152854,3.94993555,4487.1,4487.0,0.00194179]
[1759892153062,4.42693389,4487.1,4487.0,0.00194179]
[1759892155259,0.1237,4486.5,4486.3,1.20090421]
[1759892155562,0.7684,4485.8,4485.7,3.9534]
[1759892156062,0.7684,4485.8,4485.7,4.35446]
[1759892156258,0.7684,4485.8,4485.7,4.35721634]
[1759892156964,0.7684,4485.8,4485.7,3.21055634]
[1759892157765,0.7684,4485.8,4485.7,3.96819951]
[1759892158663,0.7684,4485.8,4485.7,4.71379951]
[1759892161563,1.16946,4485.8,4485.7,3.21055634]
[1759892161760,4.12201946,4485.8,4485.7,3.21055634]
[1759892161962,4.87966263,4485.8,4485.7,0.00275634]
[1759892162870,1.16951,4485.3,4485.2,3.2078]
[1759892163168,4.33143503,4485.3,4485.2,3.9534]
[1759892163363,3.93032503,4485.3,4485.2,4.71104317]
[1759892163868,3.93032503,4485.3,4485.2,4.71349131]
[1759892164969,3.93032503,4485.3,4485.2,4.17379131]
[1759892165866,3.93032503,4485.3,4485.2,3.96789131]
[1759892166668,3.93032503,4485.3,4485.2,3.21024814]
[1759892167667,3.93032503,4485.3,4485.2,0.00244814]
[1759892170770,8.93032503,4485.3,4485.2,0.00244814]
[1759892173574,8.93032503,4485.3,4485.2,0.21874814]
[1759892174277,8.93032503,4485.3,4485.2,0.00244814]
[1759892175176,8.70732503,4485.3,4485.2,0.00244814]
[1759892175372,8.93032503,4485.3,4485.2,0.00244814]
[1759892176570,3.70732503,4485.3,4485.2,0.00244814]
[1759892176779,3.93032503,4485.3,4485.2,0.75434814]
[1759892177068,3.93032503,4485.3,4485.2,0.00244814]
[1759892181275,4.40745221,4485.3,4485.2,0.00244814]
[1759892186486,4.18445221,4485.3,4485.2,0.00244814]
[1759892186784,4.40745221,4485.3,4485.2,0.00244814]
[1759892196994,4.18445221,4485.3,4485.2,0.00244814]
[1759892197185,4.40745221,4485.3,4485.2,0.00244814]
[1759892197994,7.61525221,4485.3,4485.2,0.00244814]
[1759892202098,4.40745221,4485.3,4485.2,0.00244814]
[1759892202295,7.39225221,4485.3,4485.2,0.00244814]
[1759892202496,7.61525221,4485.3,4485.2,0.77064814]
[1759892203396,7.61525221,4485.3,4485.2,0.21534814]
[1759892203798,7.61525221,4485.3,4485.2,0.00244814]
[1759892208701,4.40745221,4485.3,4485.2,0.00244814]
[1759892209002,7.61525221,4485.3,4485.2,0.00244814]
[1759892211302,4.40745221,4485.3,4485.2,0.00244814]
[1759892212907,4.18445221,4485.3,4485.2,0.00244814]
[1759892213102,4.40745221,4485.3,4485.2,0.00244814]
[1759892214805,4.18445221,4485.3,4485.2,0.00244814]
[1759892215010,4.18445221,4485.3,4485.2,0.77064814]
[1759892215011,4.40745221,4485.3,4485.2,0.77064814]
[1759892215908,4.40745221,4485.3,4485.2,0.43024814]
[1759892216810,4.40745221,4485.3,4485.2,0.21534814]
[1759892217006,4.40745221,4485.3,4485.2,0.00244814]
[1759892217509,4.18445221,4485.3,4485.2,0.00244814]
[1759892217706,7.61525221,4485.3,4485.2,0.00244814]
[1759892221509,7.61525221,4485.3,4484.0,1.20090421]
[1759892221510,0.4012,4484.2,4484.0,1.20090421]
[1759892221714,0.7403,4483.9,4483.8,4.40870421]
[1759892221915,0.9633,4483.9,4483.8,4.40870421]
[1759892222115,4.31553334,4483.9,4483.8,3.2078]
[1759892222314,0.52928,4483.5,4483.2,3.2078]
[1759892222514,0.7403,4483.3,4483.2,3.42278871]
[1759892222919,0.7403,4483.3,4483.2,3.20988871]
[1759892224920,0.7403,4483.3,4483.2,3.42278871]
[1759892225122,0.7403,4483.3,4483.2,3.20988871]
[1759892226315,0.7403,4483.3,4483.2,3.42028871]
[1759892226517,0.9633,4483.3,4483.2,3.95558871]
[1759892226820,0.7566,4483.3,4483.2,3.95558871]
[1759892227017,0.5336,4483.3,4483.2,3.95558871]
[1759892227212,0.7566,4483.3,4483.2,3.95558871]
[1759892227721,0.223,4483.3,4483.2,3.95558871]
[1759892227918,0.5332,4483.3,4483.2,3.95558871]
[1759892228115,0.7528,4483.3,4483.2,3.95558871]
[1759892228420,0.9667,4483.3,4483.2,3.95558871]
[1759892229022,0.5298,4483.3,4483.2,3.95558871]
[1759892231322,0.00283803,4483.5,4483.4,0.7457]
[1759892232424,0.53263803,4483.5,4483.4,0.7457]
[1759892232618,0.2196,4483.3,4483.2,3.93407871]
[1759892232817,0.5298,4483.3,4483.2,4.14447871]
[1759892233315,0.5298,4483.3,4483.2,4.35687871]
[1759892234921,0.7437,4483.3,4483.2,3.20988871]
[1759892235220,3.84860361,4483.3,4483.2,3.20988871]
[1759892237122,3.84860361,4483.3,4483.2,0.00208871]
[1759892240314,1.34645622,4483.4,4483.3,0.3229]
[1759892240315,0.4335,4483.4,4483.3,0.3229]
[1759892240524,3.60242271,4483.3,4483.2,3.20988871]
[1759892240822,0.7437,4483.3,4483.2,3.20988871]
[1759892241125,3.60242271,4483.3,4483.2,0.00208871]
[1759892242815,3.82542271,4483.3,4483.2,0.00208871]
[1759892245325,3.60242271,4483.3,4483.2,0.74778871]
[1759892245519,2.85872271,4483.3,4483.2,0.74778871]
[1759892245723,3.08172271,4483.3,4483.2,1.69296493]
[1759892246332,2.85872271,4483.3,4483.2,1.69296493]
[1759892249628,2.85872271,4483.3,4483.2,0.74778871]
[1759892249936,3.38852271,4483.3,4483.2,0.74778871]
[1759892251029,2.85872271,4483.3,4483.2,0.74778871]
[1759892251229,0.00283803,4483.5,4483.4,0.7457]
[1759892251435,0.53263803,4483.5,4483.4,0.7457]
[1759892252032,0.93390803,4483.5,4483.4,0.7457]
[1759892252229,4.67543737,4483.5,4483.4,0.2104]
[1759892252432,4.67543737,4483.5,4483.2,0.00208871]
[1759892252433,1.14499,4483.3,4483.2,0.00208871]
[1759892252635,1.36799,4483.3,4483.2,0.00208871]
[1759892252835,1.36799,4483.3,4483.2,0.21248871]
[1759892253333,1.36799,4483.3,4483.2,0.42488871]
[1759892254331,4.23753705,4483.3,4483.2,0.21248871]
[1759892254737,4.23753705,4483.3,4483.2,0.74778871]
[1759892257042,4.01453705,4483.3,4483.2,0.74778871]
[1759892257339,4.23753705,4483.3,4483.2,0.74778871]
[1759892257539,4.02363705,4483.3,4483.2,0.74778871]
[1759892259736,3.49383705,4483.3,4483.2,0.74778871]
[1759892260042,4.00723705,4483.3,4483.2,0.74778871]
[1759892260339,4.23113705,4483.3,4483.2,0.74778871]
[1759892260736,4.23113705,4483.3,4483.2,0.00208871]
[1759892260943,4.71688065,4483.3,4483.2,0.00208871]
[1759892263144,4.71688065,4483.3,4483.2,0.22808871]
[1759892264244,4.71688065,4483.3,4483.2,0.45308871]
[1759892264438,4.71688065,4483.3,4483.2,0.77378871]
[1759892268945,4.71688065,4483.3,4483.2,0.22808871]
[1759892271248,4.71688065,4483.3,4483.2,0.54878871]
[1759892271448,4.49388065,4483.3,4483.2,0.54878871]
[1759892271647,4.71688065,4483.3,4483.2,0.77378871]
[1759892273149,4.49388065,4483.3,4483.2,0.77378871]
[1759892273347,0.8870336,4483.3,4483.2,0.77378871]
[1759892273546,1.1100336,4483.3,4483.2,0.77378871]
[1759892274048,1.4182336,4483.3,4483.2,0.77378871]
[1759892275250,1.6234336,4483.3,4483.2,0.77378871]
[1759892275448,1.8473336,4483.3,4483.2,0.22808871]
[1759892276149,4.77297998,4483.3,4483.2,0.00208871]
[1759892282446,0.52501,4483.0,4482.9,0.02230724]
[1759892282650,2.73004599,4483.0,4482.9,0.02230724]
[1759892282858,5.65833924,4483.0,4482.9,0.02230724]
[1759892283448,5.65833924,4483.0,4482.9,0.02430737]
[1759892287063,5.43533924,4483.0,4482.9,0.02430737]
[1759892287361,5.65833924,4483.0,4482.9,0.02430737]
[1759892289763,5.65833924,4483.0,4482.9,0.24650737]
[1759892290264,3.81534685,4483.0,4482.9,0.78190737]
[1759892290459,4.57944685,4483.0,4482.9,0.78190737]
[1759892290665,4.92734685,4483.0,4482.9,0.78190737]
[1759892290866,4.92734685,4483.0,4482.9,0.24650737]
[1759892292361,5.68633924,4483.0,4482.9,0.24650737]
[1759892292566,5.68633924,4483.0,4482.9,0.02430737]
[1759892303375,5.68633924,4483.0,4482.9,0.24650737]
[1759892303571,5.46333924,4483.0,4482.9,0.24650737]
[1759892303876,5.68633924,4483.0,4482.9,0.24650737]
[1759892304077,5.68633924,4483.0,4482.9,0.02430737]
[1759892304276,5.46333924,4483.0,4482.9,0.02430737]
[1759892304477,5.68633924,4483.0,4482.9,0.02430737]
[1759892308678,1.15701,4481.9,4481.8,0.2222]
[1759892308868,2.13900239,4481.9,4481.8,0.2222]
[1759892309678,2.13900239,4481.9,4481.8,0.76027851]
[1759892310080,1.38001,4481.9,4481.8,0.76027851]
[1759892312678,1.15694,4482.7,4482.6,0.2222]
[1759892312872,1.86402459,4482.7,4482.6,0.2222]
[1759892313078,4.09261163,4482.4,4482.3,0.5347]
[1759892313277,4.31561163,4482.4,4482.3,0.5347]
[1759892313583,4.31561163,4482.4,4482.3,0.2222]
[1759892315378,4.7994996,4482.4,4482.3,0.2222]
[1759892317686,4.7994996,4482.4,4482.3,0.7797]
[1759892317687,4.0438996,4482.4,4482.3,0.7797]
[1759892317887,3.56001163,4482.4,4482.3,0.7797]
[1759892318785,4.09401163,4482.4,4482.3,0.7797]
[1759892318986,4.31881163,4482.4,4482.3,0.7797]
[1759892319696,0.7702,4481.9,4481.8,3.21047851]
[1759892319889,0.9932,4481.9,4481.8,3.43417851]
[1759892320193,0.9932,4481.9,4481.8,3.64237851]
[1759892320395,0.7752,4481.9,4481.8,8.96867851]
[1759892320592,0.223,4481.9,4481.8,8.96867851]
[1759892321091,0.9642,4482.1,4482.0,0.8889]
[1759892321498,0.6244,4482.1,4482.0,0.8889]
[1759892323498,0.12653803,4483.5,4482.3,0.3732]
[1759892323793,0.1239,4483.0,4482.6,3.3244]
[1759892323991,0.7702,4482.7,4482.6,3.3944]
[1759892326596,0.7702,4482.7,4482.6,3.2078]
[1759892327600,0.223,4482.9,4482.6,3.2078]
[1759892327601,0.7702,4482.9,4482.8,0.3732]
[1759892329102,0.4304,4482.7,4482.6,3.3944]
[1759892329302,0.7702,4482.7,4482.6,3.581]
[1759892330402,0.5522,4482.7,4482.6,3.581]
[1759892330598,0.7702,4482.7,4482.6,3.581]
[1759892333305,0.5522,4482.7,4482.6,3.6976]
[1759892333608,0.5522,4482.7,4482.6,3.581]
[1759892335903,0.5522,4482.7,4482.6,0.3732]
[1759892336103,0.5522,4482.7,4482.6,3.581]
[1759892337708,0.3398,4482.7,4482.6,3.6976]
[1759892340710,0.7702,4482.7,4482.6,3.2078]
[1759892341410,0.7702,4482.7,4482.6,3.3944]
[1759892342613,0.7702,4482.7,4482.6,3.581]
[1759892342820,0.7702,4482.7,4482.6,3.2078]
[1759892343114,0.7702,4482.7,4482.6,3.3944]
[1759892345614,0.7702,4482.7,4482.6,3.581]
[1759892346318,0.72598,4483.3,4483.2,0.3744]
[1759892346511,1.21094506,4483.3,4483.2,0.4914]
[1759892346713,1.41704506,4483.3,4483.2,0.4914]
[1759892346916,1.41704506,4483.3,4483.2,0.3744]
[1759892347806,1.21094506,4483.3,4483.2,0.4914]
[1759892348018,1.41704506,4483.3,4483.2,0.4914]
[1759892348213,1.41704506,4483.3,4483.2,0.3744]
[1759892348414,1.41704506,4483.3,4483.2,0.4914]
[1759892348613,1.41704506,4483.3,4483.2,0.3744]
[1759892350118,1.62474506,4483.3,4483.2,0.3744]
[1759892352917,1.41704506,4483.3,4483.2,0.4914]
[1759892355415,0.48496506,4483.3,4483.2,1.43765808]
[1759892356423,0.3247,4483.3,4483.2,1.32065808]
[1759892357124,0.3247,4483.3,4483.2,1.43765808]
[1759892362026,0.5308,4483.3,4483.2,1.43765808]
[1759892362524,0.3247,4483.3,4483.2,1.43765808]
[1759892364621,0.2061,4482.7,4482.6,3.2078]
[1759892364828,0.7385,4482.7,4482.6,3.395]
[1759892365427,0.7385,4482.7,4482.6,3.5822]
[1759892366723,0.5308,4482.7,4482.6,3.5822]
[1759892367025,0.3247,4482.9,4482.8,0.4914]
[1759892367229,0.7385,4482.7,4482.6,3.2078]
[1759892367432,0.7385,4482.7,4482.6,3.395]
[1759892367623,0.7385,4482.7,4482.6,3.5822]
[1759892369327,0.5308,4482.7,4482.6,3.6992]
[1759892369728,0.3247,4482.7,4482.6,3.6992]
[1759892373120,0.5308,4482.7,4482.6,3.6992]
[1759892373328,0.7385,4482.7,4482.6,3.2078]
[1759892373526,0.7385,4482.7,4482.6,3.395]
[1759892375135,0.7385,4482.7,4482.6,4.15410051]
[1759892375326,0.13343803,4483.5,4482.7,0.117]
[1759892375532,0.13343803,4483.5,4483.4,0.1872]
[1759892375533,0.87763803,4483.5,4483.4,0.1872]
[1759892375732,1.58621902,4483.5,4483.4,0.1872]
[1759892376229,1.98748902,4483.5,4483.4,0.1872]
[1759892376431,1.76448902,4483.5,4483.4,0.1872]
[1759892376733,1.98748902,4483.5,4483.4,0.1872]
[1759892376932,1.76448902,4483.5,4483.4,0.1872]
[1759892377336,1.98748902,4483.5,4483.4,0.1872]
[1759892378029,1.98752191,4483.5,4483.4,0.1872]
[1759892381540,1.76452191,4483.5,4483.4,0.1872]
[1759892381740,1.98752191,4483.5,4483.4,0.1872]
[1759892382240,1.76452191,4483.5,4483.4,0.1872]
[1759892382437,1.98752191,4483.5,4483.4,0.1872]
[1759892382639,0.8334,4483.1,4483.0,3.2078]
[1759892382840,1.1526,4483.1,4483.0,4.15390051]
[1759892383436,1.1526,4483.1,4483.0,4.34090051]
[1759892386940,0.9385,4483.1,4483.0,4.45780051]
[1759892387134,0.9385,4483.1,4483.0,4.34090051]
[1759892388440,0.7205,4483.1,4483.0,4.45780051]
[1759892388642,0.00283803,4483.5,4483.4,0.4909]
[1759892388840,0.80825668,4483.5,4483.4,1.25000051]
[1759892389244,0.94255668,4483.5,4483.4,1.25000051]
[1759892389544,0.45633803,4483.5,4483.4,1.25000051]
[1759892391256,0.67433803,4483.5,4483.4,1.25000051]
[1759892391758,0.67433803,4483.5,4483.4,1.13310051]
[1759892392258,0.67433803,4483.5,4483.4,1.25000051]
[1759892392955,0.67433803,4483.5,4483.4,1.13310051]
[1759892393456,0.67433803,4483.5,4483.4,1.25000051]
[1759892394152,0.88843803,4483.5,4483.4,1.13310051]
[1759892394456,1.15258,4483.4,4483.3,0.223]
[1759892394956,1.1526,4483.1,4483.0,3.3948]
[1759892395158,1.1526,4483.1,4483.0,4.34090051]
[1759892396656,0.9385,4483.1,4483.0,4.45780051]
[1759892397651,0.9385,4483.1,4483.0,4.34090051]
[1759892398259,1.1526,4483.1,4483.0,3.5818]
[1759892398465,1.1526,4483.1,4483.0,4.34090051]
[1759892398761,0.9385,4483.1,4483.0,4.34090051]
[1759892398961,0.9385,4483.1,4483.0,4.45780051]
[1759892401164,1.1526,4483.1,4483.0,4.15390051]
[1759892401363,0.40137,4482.3,4482.2,1.59919294]
[1759892401560,1.15271,4481.9,4481.4,3.2078]
[1759892401754,1.15271,4481.9,4480.5,3.26313755]
[1759892401755,0.7513,4480.7,4480.6,3.2078]
[1759892402057,0.8856,4480.5,4480.4,0.75910051]
[1759892402658,0.8856,4480.5,4480.4,0.76143562]
[1759892402866,0.8856,4480.5,4480.4,0.94843562]
[1759892403159,0.8856,4480.5,4480.4,1.13543562]
[1759892403354,0.8856,4480.5,4480.4,0.76143562]
[1759892403559,0.8856,4480.5,4480.4,0.94843562]
[1759892404760,0.8856,4480.5,4480.4,0.00233511]
[1759892404761,3.82167853,4480.5,4480.4,0.00233511]
[1759892405066,3.82167853,4480.5,4479.1,3.3948]
[1759892405067,0.5372,4479.2,4479.1,3.3948]
[1759892405253,0.5372,4479.2,4479.1,4.34120051]
[1759892405960,0.3215156,4479.2,4479.1,4.34323425]
[1759892406159,0.3215156,4479.2,4479.1,4.46033425]
[1759892406468,0.5391156,4479.2,4479.1,4.34323425]
[1759892407368,0.7589156,4479.2,4479.1,4.34323425]
[1759892408863,0.7589156,4479.2,4479.1,0.18903374]
[1759892409063,0.7589156,4479.2,4479.1,0.00203374]
[1759892414168,3.64470716,4479.2,4479.1,0.00203374]
[1759892417366,3.86770716,4479.2,4479.1,0.00203374]
[1759892424068,0.8979,4478.0,4477.9,0.02233215]
[1759892424275,0.8979,4478.0,4477.9,1.15603266]
[1759892424473,0.6835,4478.0,4477.9,1.27313266]
[1759892424674,0.9011,4478.0,4477.9,1.15603266]
[1759892425171,0.9011,4478.0,4477.9,1.15888454]
[1759892425570,0.6781,4478.0,4477.9,1.15888454]
[1759892425778,0.9011,4478.0,4477.9,1.15888454]
[1759892426076,1.1209,4478.0,4477.9,1.15888454]
[1759892426467,0.8979,4478.0,4477.9,1.15888454]
[1759892426670,1.1209,4478.0,4477.9,1.15888454]
[1759892429576,1.1209,4478.0,4477.9,0.39978403]
[1759892433582,1.6189217,4478.0,4477.9,0.39978403]
[1759892433783,1.6189217,4478.0,4477.9,0.02518403]
[1759892435384,1.6189217,4478.0,4477.9,0.21248403]
[1759892436685,1.6189217,4478.0,4477.9,0.02518403]
[1759892436881,0.4980217,4478.0,4477.9,0.80115403]
[1759892437086,0.223,4478.2,4478.1,0.89285]
[1759892437281,0.5551,4478.3,4478.2,0.1169]
[1759892437482,1.05352991,4478.3,4478.2,0.4911]
[1759892437880,1.27532991,4478.3,4478.2,0.4911]
[1759892438084,0.3536,4478.0,4477.9,0.9728185]
[1759892438281,0.6857,4478.0,4477.9,1.3470185]
[1759892439387,0.223,4478.3,4478.2,0.4911]
[1759892439588,1.2754941,4478.3,4478.2,0.3742]
[1759892439788,0.6857,4478.0,4477.9,1.1599185]
[1759892440485,0.8919,4478.0,4477.9,0.21228403]
[1759892440686,1.39052909,4478.0,4477.9,0.02518403]
[1759892443688,0.8919,4478.0,4477.9,0.02518403]